Cogmind - Beta 11.1 @@@ ROGUE MODE // 2022.12.19 @ 20:41:21 Player: M4NZ Result: Destroyed by Y-54 Guardian with Flak Gun Performance ------------- Evolutions (3) 1500 Regions Visited (6) 1200 Robots Destroyed (32) 160 Value Destroyed (814) 814 Prototype IDs (3) 60 Alien Tech Used (0) 0 Bonus (84) 84 TOTAL SCORE: 3818 Bonus ------- High Alert Combat Kills 84 Cogmind --------- Core Integrity 0/700 Matter 153/300 Energy 97/100 System Corruption 0% Temperature Cool (87) Movement Core (50) Location -7/Factory Parts ------- > --- POWER (1) -------- (None) > --- PROPULSION (4) --- (None) > --- UTILITY (6) ------ (None) > --- WEAPON (2) ------- (None) > --- INVENTORY (5) ---- Light Nuclear Core High-capacity Battery (250) Remote Datajack Peak State ------------ > --- POWER ------------ Micro Nuclear Core > --- PROPULSION ------- Cooled VTOL Module > --- UTILITY ---------- Advanced Weight Redist. System Core Shielding Core Shielding System Restoration Module > --- WEAPON ----------- EM Pulse Cannon Gauss Cannon > --- INVENTORY -------- High-capacity Battery Rocket Array Remote Datajack [Rating: 26] Favorites ----------- Power Light Ion Engine Engine Light Ion Engine Power Core Micro Nuclear Core Propulsion Flight Unit Leg Aluminum Leg Hover Unit Improved Hover Unit Flight Unit Flight Unit Utility Core Shielding Device ECM Suite Storage Small Storage Unit Processor Targeting Computer Protection Core Shielding Weapon Light Assault Rifle Energy Gun EM Pulse Gun Energy Cannon Light EM Pulse Cannon Ballistic Gun Light Assault Rifle Ballistic Cannon Gauss Cannon Launcher Concussive RPG Special Melee Weapon Datajack Build | -11 -10 -10 -10 -9 -8 -7 ------- Run | Scr Mat Min Exi Min Mat Fac Slots Evolved 6 | . . . . . 4 2 Power . | . . . . . . . Propulsion 2 | . . . . . 2 . Utility 4 | . . . . . 2 2 Weapon . | . . . . . . . Parts Attached 78 | 6 15 . . 4 27 26 Power 14 | 1 1 . . 1 6 5 Engine 6 | 1 1 . . 1 3 . Core 8 | . . . . . 3 5 Reactor . | . . . . . . . Propulsion 16 | 2 3 . . 1 5 5 Treads . | . . . . . . . Leg 3 | 2 . . . . 1 . Wheel . | . . . . . . . Hover 6 | . . . . . 2 4 Flight 7 | . 3 . . 1 2 1 Utility 16 | 1 6 . . . 5 4 Device 8 | . 4 . . . 2 2 Storage 4 | 1 1 . . . 2 . Processor 1 | . . . . . 1 . Hackware . | . . . . . . . Protection 3 | . 1 . . . . 2 Artifact . | . . . . . . . Weapon 32 | 2 5 . . 2 11 12 Energy Gun 7 | 2 . . . . 1 4 Energy Cannon 4 | . . . . . 2 2 Ballistic Gun 8 | . 3 . . 1 4 . Ballistic Cannon 2 | . . . . . . 2 Launcher 9 | . . . . 1 4 4 Special Weapon . | . . . . . . . Impact Weapon . | . . . . . . . Slashing Weapon . | . . . . . . . Piercing Weapon . | . . . . . . . Special Melee Weapon 2 | . 2 . . . . . Unidentified Prototypes 3 | . . . . . 1 2 Parts Lost 34 | . 2 . . . 16 16 Power 4 | . . . . . 3 1 Propulsion 13 | . 1 . . . 6 6 Utility 8 | . . . . . 4 4 Weapon 9 | . 1 . . . 3 5 Highest Loss Streak 8 | . 2 . . . 8 6 To Critical Strikes . | . . . . . . . Average Slot Usage (%) 56 | . 86 85 85 88 46 30 Engine 6 | . 14 14 14 14 5 . Core 1 | . . . . . 1 2 Leg 1 | . 3 . . . 2 . Hover 2 | . . . . . . 6 Flight 14 | . 23 28 28 28 14 3 Device 7 | . 10 14 14 14 5 3 Storage 1 | . 2 . . . 2 . Protection 8 | . 9 14 14 14 6 7 Energy Gun 3 | . 9 . . . . 3 Ballistic Gun 5 | . 7 14 14 14 3 1 Special Melee Weapon 1 | . 4 . . . . . Naked Turns 4 | . . . . . . 4 Heaviest Build 22 | 14 14 7 7 7 12 22 Greatest Support 20 | 20 20 8 8 8 12 16 Greatest Overweight (x) 4 | 2 4 . . . 2 3 Average Overweight (x) . | . . . . . . . Largest Inventory Capacity 8 | 8 8 5 5 5 5 5 Average Capacity 5 | 7 5 5 5 5 5 5 Most Carried 7 | 3 7 5 5 5 5 5 Average Carried 4 | 1 4 5 5 4 3 4 Final Capacity 8 | 8 5 5 5 5 5 5 Final Carried 5 | 2 5 5 5 5 2 3 Class Distribution -------------------- 91% | Mutant 4% | Scavenger-Mutant 4% | Sprinter Dominant Class ---------------- Mutant | -10/Materials Mutant | -10/Mines Mutant | -10/Exiles Scavenger-Mutant | -9/Mines Mutant | -8/Materials Mutant | -7/Factory Resources | -11 -10 -10 -10 -9 -8 -7 ----------- Run | Scr Mat Min Exi Min Mat Fac Matter Collected 914 | 190 218 . . . 174 332 Remotely . | . . . . . . . Salvage Created 815 | . 52 . . 14 215 534 Parts 59 | . 7 . . 7 17 28 Haulers Intercepted . | . . . . . . . Recyclers Shooed 1 | . . . . . . 1 Parts Field Recycled . | . . . . . . . Retrieved Matter . | . . . . . . . Parts Self-Destructed . | . . . . . . . Prevented . | . . . . . . . Kills | -11 -10 -10 -10 -9 -8 -7 ------- Run | Scr Mat Min Exi Min Mat Fac Combat Hostiles Destroyed 25 | . 3 . . 4 7 11 Guns 6 | . 3 . . . 1 2 Cannons 7 | . . . . . 5 2 AOE 11 | . . . . 4 1 6 Classes Destroyed 11 | . 1 . . . 4 6 Worker 3 | . . . . . 2 1 Builder 1 | . . . . . . 1 Tunneler 1 | . . . . . 1 . Recycler 1 | . . . . . . 1 Watcher 1 | . . . . . . 1 Swarmer 12 | . 3 . . 4 5 . Grunt 7 | . . . . . 1 6 Duelist 1 | . . . . . . 1 Sentry 2 | . . . . . 1 1 Hunter 2 | . . . . . . 2 Programmer 1 | . . . . . . 1 Best Kill Streak 9 | . 3 . . 4 9 5 Combat Bots Only 6 | . 3 . . 4 6 3 Max Kills in Single Turn 4 | . 1 . . 3 2 4 Gunslinging . | . . . . . . . Exploded 3 | . . . . 3 1 3 Melee . | . . . . . . . Uniques/NPCs Destroyed . | . . . . . . . Combat | -11 -10 -10 -10 -9 -8 -7 -------- Run | Scr Mat Min Exi Min Mat Fac Damage Taken 3086 | . 139 . . 74 1235 1638 Core 1205 | . 28 . . 18 456 703 Absorbed by Shields . | . . . . . . . Redirected to Shielding 157 | . 4 . . 3 44 106 Core Remaining (%) 66 | 100 . . . 81 17 . Volleys Fired 61 | . 10 . . 3 28 20 Largest 2 | . 2 . . 1 2 2 Hottest 160 | . 60 . . 30 86 160 Shots Fired 82 | . 13 . . 3 36 30 Gun 43 | . 13 . . . 15 15 Cannon 26 | . . . . . 16 10 Launcher 13 | . . . . 3 5 5 Special . | . . . . . . . Kinetic 25 | . 8 . . . 11 6 Thermal 15 | . . . . . . 15 Explosive 13 | . . . . 3 5 5 Electromagnetic 29 | . 5 . . . 20 4 Robot Hit Streak 11 | . 9 . . 2 9 11 Robot Miss Streak 3 | . 2 . . 1 2 3 Penetration Max . | . . . . . . . Secondary Targets 1 | . 1 . . . . . Max Gunslinging Chain 1 | . 1 . . . . . Shots Hit Robots 60 | . 11 . . 2 24 23 Core Hits 71 | . 4 . . 4 19 44 Critical Kills . | . . . . . . . Critical Parts Destroyed . | . . . . . . . Critical Strikes . | . . . . . . . Melee Attacks 1 | . 1 . . . . . Impact . | . . . . . . . Slashing . | . . . . . . . Piercing . | . . . . . . . Sneak Attacks . | . . . . . . . Combat Hostiles . | . . . . . . . Follow-up Attacks . | . . . . . . . Damage Inflicted 2343 | . 96 . . 254 726 1267 Guns 592 | . 96 . . . 178 318 Cannons 483 | . . . . . 267 216 Explosions 1202 | . . . . 254 281 667 Melee . | . . . . . . . Ramming 66 | . . . . . . 66 Kinetic 315 | . 61 . . . 117 137 Thermal 483 | . . . . . 165 318 Explosive 1037 | . . . . 254 116 667 Electromagnetic 442 | . 35 . . . 328 79 Impact . | . . . . . . . Slashing . | . . . . . . . Piercing . | . . . . . . . Highest Corruption 3 | . 2 2 2 2 . 3 Average Corruption 1 | . 2 2 2 2 . 1 Corruption Purged 4 | . . . . . . 4 Corruption Blocked . | . . . . . . . Effects 4 | . 1 . . . . 3 Message Errors 1 | . . . . . . 1 Matter Fused 1 | . . . . . . 1 Heat Flow Errors 1 | . . . . . . 1 Energy Discharges 1 | . 1 . . . . . Overload Shots . | . . . . . . . Overflow Damage 26 | . . . . . 10 16 Projectiles . | . . . . . . . Explosions 20 | . . . . . 10 10 Melee 6 | . . . . . . 6 Knockbacks 1 | . . . . . . 1 Impact 1 | . . . . . . 1 Kinetic . | . . . . . . . Secondary . | . . . . . . . Self-Inflicted Damage 377 | . . . . 30 57 290 Shots 13 | . . . . 2 2 9 Rammed 5 | . . . . . . 5 Targets Rammed 5 | . . . . . . 5 Kicked . | . . . . . . . Crushed . | . . . . . . . Highest Temperature 452 | . 48 . . . 90 452 Average Temperature 78 | . 13 . . . 28 140 Received Heat Transfer 906 | . 27 . . . 450 429 Effects 2 | . . . . . . 2 Shutdowns 1 | . . . . . . 1 Damage (minor) 1 | . . . . . . 1 Siege Activations . | . . . . . . . Robots Corrupted . | . . . . . . . Combat Hostiles . | . . . . . . . Parts Fried . | . . . . . . . Impact Corruptions 1 | . . . . . . 1 Robots Melted 1 | . . . . . . 1 Combat Hostiles 1 | . . . . . . 1 Parts Melted 1 | . . . . . . 1 Heat Transferred 1024 | . . . . . 300 724 Parts Sabotaged . | . . . . . . . Parts Stolen . | . . . . . . . Parts Stripped . | . . . . . . . Power Chain Reactions 3 | . . . . . 3 . Missiles Intercepted . | . . . . . . . Alert | -11 -10 -10 -10 -9 -8 -7 ------- Run | Scr Mat Min Exi Min Mat Fac Peak Influence 577 | . 249 36 . 102 327 577 Initial 135 | . . 36 . . 39 135 Average 206 | . 86 36 . 98 179 364 Maximum Alert Level 2 | . 1 . . . 1 2 Low Security (%) 51 | 100 84 100 . 100 45 16 Level 1 32 | . 15 . . . 54 40 Level 2 15 | . . . . . . 42 Level 3 . | . . . . . . . Level 4 . | . . . . . . . Level 5 . | . . . . . . . High Security . | . . . . . . . Max Security . | . . . . . . . Squads Dispatched 8 | . 1 . . . 1 6 Investigation 1 | . 1 . . . . . Extermination 2 | . . . . . . 2 Reinforcement 5 | . . . . . 1 4 Assault . | . . . . . . . Garrison . | . . . . . . . Intercept . | . . . . . . . Searches Triggered . | . . . . . . . Construction Impeded . | . . . . . . . Haulers Reinforced . | . . . . . . . Active Scanning Responses . | . . . . . . . Cargo Convoy Interrupts . | . . . . . . . Stealth | -11 -10 -10 -10 -9 -8 -7 --------- Run | Scr Mat Min Exi Min Mat Fac Distress Signals 7 | . 1 . . . 3 3 Communications Jammed . | . . . . . . . Distress Signals . | . . . . . . . Times Spotted 82 | . 16 . . 4 25 37 Peak Tracking Total 13 | . 5 . . 4 13 9 Tactical Retreats 12 | . 4 . . . 2 6 Traps | -11 -10 -10 -10 -9 -8 -7 ------- Run | Scr Mat Min Exi Min Mat Fac Traps Triggered 3 | . 1 . . . 1 1 Indirectly . | . . . . . . . Trap Hack Attempts . | . . . . . . . Triggered . | . . . . . . . Disarmed . | . . . . . . . Reprogrammed . | . . . . . . . Reused . | . . . . . . . Traps Extracted . | . . . . . . . Installed . | . . . . . . . Triggered . | . . . . . . . Machines | -11 -10 -10 -10 -9 -8 -7 ---------- Run | Scr Mat Min Exi Min Mat Fac Machines Disabled . | . . . . . . . Max in Single Turn . | . . . . . . . Machines Sabotaged . | . . . . . . . Garrisons Compromised . | . . . . . . . Overloaded Fab Kills . | . . . . . . . Hacking | -11 -10 -10 -10 -9 -8 -7 --------- Run | Scr Mat Min Exi Min Mat Fac Machines Accessed 7 | . 4 . . . 2 1 Terminals 4 | . 3 . . . 1 . Fabricators . | . . . . . . . Repair Stations . | . . . . . . . Recycling Units 3 | . 1 . . . 1 1 Scanalyzers . | . . . . . . . Garrison Access . | . . . . . . . Total Hacks 13 | . 8 . . . 4 1 Successful 8 | . 4 . . . 3 1 Failed 5 | . 4 . . . 1 . Catastrophic . | . . . . . . . Database Lockouts . | . . . . . . . Manual 4 | . 4 . . . . . Terminals 7 | . 6 . . . 1 . Fabricators . | . . . . . . . Repair Stations . | . . . . . . . Recycling Units 6 | . 2 . . . 3 1 Scanalyzers . | . . . . . . . Garrison Access . | . . . . . . . Terminal Hacks 3 | . 2 . . . 1 . Locate Traps 2 | . 1 . . . 1 . Zone Layout 1 | . 1 . . . . . Fabricator Hacks . | . . . . . . . Repair Station Hacks . | . . . . . . . Recycling Unit Hacks 5 | . 2 . . . 2 1 Report Inventory 3 | . 1 . . . 1 1 Retrieve Components 2 | . 1 . . . 1 . Scanalyzer . | . . . . . . . Garrison Access Hacks . | . . . . . . . Unauthorized Hacks . | . . . . . . . Terminals . | . . . . . . . Fabricators . | . . . . . . . Repair Stations . | . . . . . . . Recycling Units . | . . . . . . . Scanalyzers . | . . . . . . . Garrison Access . | . . . . . . . Data Cores Recovered . | . . . . . . . Used . | . . . . . . . Hacking Detections 4 | . 3 . . . 1 . Full Trace Events 1 | . 1 . . . . . Feedback Events . | . . . . . . . Feedback Blocked . | . . . . . . . Robot Schematics Acquired . | . . . . . . . Robots Built . | . . . . . . . Authchips . | . . . . . . . Time . | . . . . . . . Total Robot Build Rating . | . . . . . . . Part Schematics Acquired . | . . . . . . . Parts Built . | . . . . . . . Authchips . | . . . . . . . Time . | . . . . . . . Total Part Build Rating . | . . . . . . . Parts Repaired . | . . . . . . . Time . | . . . . . . . Parts Recycled . | . . . . . . . Recycled Matter . | . . . . . . . Retrieved Matter . | . . . . . . . Retrieved Components 5 | . 2 . . . 3 . Parts Scanalyzed . | . . . . . . . Part Schematics Acquired . | . . . . . . . Parts Damaged . | . . . . . . . Bothacking | -11 -10 -10 -10 -9 -8 -7 ------------ Run | Scr Mat Min Exi Min Mat Fac Used RIF Installer . | . . . . . . . Robots Hacked . | . . . . . . . Non-combat . | . . . . . . . Combat . | . . . . . . . Robot Hacks Applied . | . . . . . . . Relay Couplers Released . | . . . . . . . Fabnet Peak Effective % . | . . . . . . . Robots Rewired . | . . . . . . . Allies Hacked . | . . . . . . . Hacks Repelled . | . . . . . . . Allies | -11 -10 -10 -10 -9 -8 -7 -------- Run | Scr Mat Min Exi Min Mat Fac Total Allies . | . . . . . . . Largest Group . | . . . . . . . Highest-Rated Group . | . . . . . . . Highest-Rated Ally . | . . . . . . . Total Orders . | . . . . . . . Ally Attacks . | . . . . . . . Total Damage . | . . . . . . . Kills . | . . . . . . . Allies Corrupted . | . . . . . . . Allies Melted . | . . . . . . . Intel | -11 -10 -10 -10 -9 -8 -7 ------- Run | Scr Mat Min Exi Min Mat Fac Robot Analysis Total . | . . . . . . . Derelict Logs Recovered 1 | . . 1 . . . . Drone Launches . | . . . . . . . Drone Recoveries . | . . . . . . . Exploration | -11 -10 -10 -10 -9 -8 -7 ------------- Run | Scr Mat Min Exi Min Mat Fac Turns Passed 1664 | 79 446 13 124 54 389 559 Spaces Moved 2850 | 58 855 36 335 114 554 898 Core 52 | 6 2 . . . 2 42 Treads . | . . . . . . . Legs 146 | 52 52 . . . 42 . Wheels . | . . . . . . . Hover 445 | . . . . . 53 392 Flight 2207 | . 801 36 335 114 457 464 Fastest Speed 32 | 50 37 37 37 37 32 35 Average Speed 45 | 117 42 37 37 37 47 47 Slowest Speed 250 | 150 250 37 37 37 190 230 Overloaded Moves . | . . . . . . . Propulsion Burnouts . | . . . . . . . Robots Hopped 17 | . 14 . . . 3 . Cave-ins Triggered . | . . . . . . . Exploration Rate (%) 39 | 5 86 14 75 29 52 17 Regions Visited 6 Branch Regions 3 Pre-discovered Areas 2 | . . 1 . 1 . . Known Exits Taken . | . . . . . . . Unknown Exits Taken 6 | 1 1 1 1 1 1 . Scrap Searched . | . . . . . . . Spaces Dug . | . . . . . . . Terrain Destroyed 78 | . . . . 4 44 30 Melee . | . . . . . . . Projectile . | . . . . . . . AOE 78 | . . . . 4 44 30 Terrain Rammed . | . . . . . . . Walls Destroyed . | . . . . . . . Machines Disabled . | . . . . . . . Actions | -11 -10 -10 -10 -9 -8 -7 --------- Run | Scr Mat Min Exi Min Mat Fac Total 3110 | 66 906 35 334 124 645 1000 Wait 70 | . 22 . . . 21 27 Move 2810 | 57 826 35 334 113 547 898 Hop 17 | . 14 . . . 3 . Pick Up 22 | 3 7 . . . 4 8 Fast Attach 38 | 5 7 . . 1 12 13 Attach 26 | 1 1 . . 1 11 12 Detach 22 | . 4 . . 1 8 9 Swap 14 | . 7 . . 2 4 1 Drop 23 | . 7 . . 3 6 7 Fire 61 | . 10 . . 3 28 20 Melee 1 | . 1 . . . . . Ram 5 | . . . . . . 5 Kick . | . . . . . . . Crush . | . . . . . . . Escape Stasis . | . . . . . . . Rewire 1 | . . . . . 1 . Trap . | . . . . . . . Miscellaneous . | . . . . . . . Route ------- -11/Scrapyard -10/Materials (discovered 5 exits: [*Mat x3] / [*Min x2]) -10/Mines -10/Exiles -9/Mines -8/Materials (discovered 2 exits: *Fac x2) -7/Factory History --------- Turn | Location | Event 8 | -11/Scrapyard | Discovered new exit (range 15) 80 | -11/Scrapyard | Entered Materials 187 | -10/Materials | Discovered new exit (range 6) 216 | -10/Materials | Discovered new exit (range 3) 271 | -10/Materials | Discovered new exit (range 5) 276 | -10/Materials | Discovered new exit (range 16) 361 | -10/Materials | Build established: Mutant 496 | -10/Materials | Discovered new exit (range 8) 526 | -10/Materials | Entered Mines 533 | -10/Mines | Learned location of Mines (-9) 537 | -10/Mines | Deemed a non-threat by the Exiles lab entrance 537 | -10/Mines | Discovered new exit (range 5) 539 | -10/Mines | Entered Exiles 549 | -10/Exiles | Met 8R-AWN 556 | -10/Exiles | Met EX-HEX 569 | -10/Exiles | Met EX-DEC 581 | -10/Exiles | Visited The Gauntlet 659 | -10/Exiles | Discovered new exit (range 14) 663 | -10/Exiles | Entered Mines 711 | -9/Mines | Discovered new exit (range 16) 714 | -9/Mines | Learned location of Storage (-7) 717 | -9/Mines | Entered Materials 717 | -8/Materials | Evolved 4 slots: Propulsion x2, Utility x2 872 | -8/Materials | Discovered new exit (range 10) 883 | -8/Materials | Lost 3 parts (3u) 1007 | -8/Materials | Core integrity fell below 50% 1046 | -8/Materials | Lost 8 parts (2p2n1u3w) 1065 | -8/Materials | Core integrity fell below 20% 1099 | -8/Materials | Discovered new exit (range 10) 1106 | -8/Materials | Entered Factory 1106 | -7/Factory | Evolved 2 slots: Utility x2 1374 | -7/Factory | Lost 4 parts (2n2w) 1430 | -7/Factory | Core integrity fell below 50% 1447 | -7/Factory | Found Prototype Launcher 1473 | -7/Factory | Identified Rocket Array 1600 | -7/Factory | Core integrity fell below 20% 1631 | -7/Factory | Lost 4 parts (1n2u1w) 1665 | -7/Factory | Destroyed by Y-54 Guardian with Flak Gun Last Messages --------------- 01641_ U-05 Engineer lays Concrete. 01643_ O-16 Technician: "IFF HANDSHAKE FAILED. SECURING TERMINAL." 01643_ U-05 Engineer builds a Wall. 01644_ U-05 Engineer lays Concrete. 01648_ ALERT: Hostiles spotted, dispatching reinforcements to Terminal F004. 01651_ U-05 Engineer lays Concrete. 01652_ Acquired Gravmag System. 01662_ Mic. Nuclear Core destroyed. 01662_ EM Pulse Cannon destroyed. 01664_ Particle Gun destroyed. 01664_ Imp. Hover Unit destroyed. 01664_ Fusion Modulator explodes. 01664_ Core Shielding destroyed. 01664_ O-16 Technician destroyed. 01664_ G-47 Trooper destroyed. 01664_ Terminal disabled. 01664_ Fusion Modulator explodes. 01664_ Gravmag System destroyed. 01664_ U-05 Engineer builds a Wall. Map ----- +----------------------------------------------------+ | ?????????????????????????????????????????????????? | | ?????????????????????????????????????????????????? | | ?????????????????????????????????????????????????? | | ?????????????????????????????????????????????????? | | ?????????????????????????????????????????????????? | | ?????????????????????????????????????????????????? | | ?????????????????????????????????????????????????? | | ?????????????????????????????????????????????????? | | ?????????????????????????????????????????????????? | | ?????????????????????????????????????????????????? | | ?????????????????????????????????????????????????? | | ?????????????????????????????????????????????????? | | ???????????????????????????????? #???????????????? | | ??????????????????????????????? #???????????????? | | ??????????????????????????????? ######??????????? | | ????????????????????????????? ?????????? | | ????????????????????????????# ??????????? | | ???????????????????+????????# ???????????? | | ???????????????????# ???????# k ????????????? | | ???????????????????# ?######uH ?????????????? | | ???????????????????? ## # ## Y ???????????????# | | ??????????????????####;;;;;;; ##???????????????# | | ?????????????????## ;#???????????????# | | ?????????????????#; ; #????????????????# | | ?????????????????#; %%r #?????????#####??# | | ?????????????????#; @ ; ############# #### | | ?????????????????#; ; % | | ????????????????#;; ; | | ????????????????# ; ; | | ????????????????##; ; | | ?????????????????#;;;;;; ;; | | ?????????????????# ;;;;;;###+###### | | ?????????????????##### # | | ?????????????????????# * ### | | ?????????????????????#! ## % | | ?????????????????????# ! [[ #T % | | ?????????????????????# [ ## | | ?????????????????????# | | ?????????????????????############### ### ##### | | ???????????????????????????????# | | ???????????????????????????????# | | ???????????????????????????????# [[ ! | | ???????????????????????????????# ![[ | | ???????????????????????????????# [[[ | | ???????????????????????????????# | | ???????????????????????????????# | | ???????????????????????????????# | | ???????????????????????????????################### | | | | | +----------------------------------------------------+ Best States ------------- Heat Dissipation 34 Energy Generation 15 Energy Capacity 410 Matter Stores 300 Matter Capacity 300 Sight Range 16 Terrain Scan Density 10 ECM Strength 1 Additional Mass Support 9 Core Shielding 20 Evasion (%) 71 Targeting Accuracy 5 Item Schematics ----------------- None Robot Schematics ------------------ None Fabricated ------------ Nothing Alien Tech Used ----------------- None Achievements -------------- None Challenges ------------ None Game ------ Seed ProtonTiamatRecalibrator Manual? 0 Play Time 00:53:10 Cumulative 41.4 hours Start 2022.12.19 @ 19:38:21 End 2022.12.19 @ 20:41:21 Sessions 1 Manual Loads 0 Difficulty Rogue Special Mode None Game No. 36 Rogue 36 Adventurer 0 Explorer 0 Win Type - Total 0 Types 0/0/0/0/0/0/0/0/0 Lore% 13 Gallery% 27 Achievement% 17 Wizard Run 0 Options --------- ASCII 0 Keyboard 1 Movement Arrows Keybinds 0 Fullscreen 1 Font 24/Smallcaps Map View 76x50 Tactical HUD 1 Map Filters NONE Filters NONE Steam 1 RUN: 3c95daf0-6cdc-4fae-bf8e-faa79c0d8c92